Cogmind - Beta 13 @@@ ROGUE MODE // 2024.05.18 @ 12:53:40 Player: Bace Troncons Result: Destroyed by Y-54 Guardian with Flak Gun Performance ------------- Evolutions (0) 0 Regions Visited (3) 600 Robots Destroyed (29) 145 Value Destroyed (572) 572 Prototype IDs (15) 300 Alien Tech Used (0) 0 Bonus (245) 245 TOTAL SCORE: 1862 Bonus ------- Follower Combat Kills 245 Cogmind --------- Core Integrity 0/250 Matter 251/300 Energy 250/250 System Corruption 0% Temperature Warm (126) Movement Walking (130) Location -7/Recycling Parts ------- > --- POWER (1) -------- Ion Engine > --- PROPULSION (2) --- Cargo Legs > --- UTILITY (2+2) ---- Armored Scrap Engine Terrain Scanner (+) Core Shielding (+) > --- WEAPON (2) ------- Battle Cannon Battle Cannon > --- INVENTORY (5) ---- Makeshift Light Armor Plating Makeshift Hacking Suite V3-11A's Pendant Datajack Heavy Mace Peak State ------------ > --- POWER ------------ Ion Engine > --- PROPULSION ------- Cargo Legs > --- UTILITY ---------- Armored Scrap Engine Terrain Scanner Core Shielding > --- WEAPON ----------- Battle Cannon Battle Cannon > --- INVENTORY -------- Makeshift Light Armor Plating Makeshift Hacking Suite V3-11A's Pendant Datajack [Rating: 42] Favorites ----------- Power Ion Engine Engine Ion Engine Propulsion Light Treads Treads Light Treads Leg Cargo Legs Utility High-capacity Storage Unit Device V3-11A's Pendant Storage High-capacity Storage Unit Protection Core Shielding Weapon Battle Cannon Energy Gun Medium Laser Ballistic Gun Battle Rifle Ballistic Cannon Battle Cannon Build | -11 -10 -10 -7 ------- Run | Yrd Mat Sub Rec Slots Evolved . | . . . . Power . | . . . . Propulsion . | . . . . Utility . | . . . . Weapon . | . . . . Parts Attached 33 | 7 12 12 2 Power 3 | 1 1 1 . Engine 3 | 1 1 1 . Core . | . . . . Reactor . | . . . . Propulsion 7 | 2 2 3 . Treads 6 | 2 2 2 . Leg 1 | . . 1 . Wheel . | . . . . Hover . | . . . . Flight . | . . . . Utility 11 | 1 5 4 1 Device 5 | . 1 3 1 Storage 5 | 1 4 . . Processor . | . . . . Hackware . | . . . . Protection 1 | . . 1 . Artifact . | . . . . Weapon 12 | 3 4 4 1 Energy Gun 4 | 2 1 1 . Energy Cannon . | . . . . Ballistic Gun 6 | 1 3 2 . Ballistic Cannon 2 | . . 1 1 Launcher . | . . . . Special Weapon . | . . . . Impact Weapon . | . . . . Slashing Weapon . | . . . . Piercing Weapon . | . . . . Special Melee Weapon . | . . . . Unidentified Prototypes 1 | . . 1 . Parts Lost 5 | . 1 4 . Power 2 | . 1 1 . Propulsion 1 | . . 1 . Utility 1 | . . 1 . Weapon 1 | . . 1 . Highest Loss Streak 3 | . 1 3 . To Critical Strikes . | . . . . Average Slot Usage (%) 90 | . 98 87 77 Engine 11 | . 13 10 11 Treads 15 | . 27 11 . Leg 5 | . . 6 11 Device 15 | . 11 16 22 Storage 12 | . 15 12 . Protection 3 | . . 4 11 Energy Gun 3 | . 9 . . Ballistic Gun 15 | . 18 14 . Ballistic Cannon 7 | . . 8 20 Naked Turns . | . . . . Heaviest Build 91 | 14 91 53 53 Greatest Support 55 | 40 40 55 55 Greatest Overweight (x) 2 | . 2 1 . Average Overweight (x) . | . . . . Largest Inventory Capacity 25 | 8 25 20 20 Average Capacity 18 | 7 18 20 6 Most Carried 20 | 4 15 20 20 Average Carried 14 | 2 9 16 5 Final Capacity 20 | 8 20 20 5 Final Carried 18 | 4 15 18 5 Scrap Engine Consumption 21 | . . . 21 Class Distribution -------------------- 100% | Mutant Dominant Class ---------------- Mutant | -10/Materials Mutant | -10/Subcaves Mutant | -7/Recycling Resources | -11 -10 -10 -7 ----------- Run | Yrd Mat Sub Rec Matter Collected 1203 | 174 481 377 171 Remotely . | . . . . Salvage Created 1151 | . 772 50 329 Parts 62 | . 46 . 16 Haulers Intercepted 2 | . 2 . . Recyclers Shooed 4 | . . . 4 Parts Field Recycled . | . . . . Retrieved Matter . | . . . . Parts Self-Destructed 13 | . . 13 . Prevented . | . . . . Kills | -11 -10 -10 -7 ------- Run | Yrd Mat Sub Rec Combat Hostiles Destroyed 15 | . 10 1 4 Guns 11 | . 10 1 . Cannons 4 | . . . 4 Classes Destroyed 10 | . 8 1 1 Worker 1 | . 1 . . Builder 1 | . 1 . . Hauler 2 | . 2 . . Recycler 7 | . 4 . 3 Operator 1 | . 1 . . Watcher 2 | . 2 . . Swarmer 6 | . 6 . . Grunt 6 | . 4 . 2 Sentry 2 | . . 1 1 Programmer 1 | . . . 1 Best Kill Streak 4 | . 4 1 3 Combat Bots Only 3 | . 3 1 3 Max Kills in Single Turn 1 | . 1 1 1 Gunslinging . | . . . . Exploded . | . . . . Melee . | . . . . Uniques/NPCs Destroyed . | . . . . Combat | -11 -10 -10 -7 -------- Run | Yrd Mat Sub Rec Hostile Shots Fired 171 | . 82 42 47 Missed 50 | . 16 14 20 Damage Taken 1521 | . 689 583 249 Core 252 | . 132 78 42 Absorbed by Shields . | . . . . Redirected to Shielding 9 | . . . 9 Regen/Repaired (Parts) 143 | . 125 . 18 Core Remaining (%) 100 | 100 . . . Volleys Fired 147 | . 82 45 20 Largest 2 | . 2 2 2 Hottest 85 | . 85 70 78 Shots Fired 285 | . 155 90 40 Gun 211 | . 155 56 . Cannon 74 | . . 34 40 Launcher . | . . . . Special . | . . . . Kinetic 231 | . 110 81 40 Thermal 54 | . 45 9 . Explosive . | . . . . Electromagnetic . | . . . . Robot Hit Streak 18 | . 14 15 18 Robot Miss Streak 5 | . 5 . 3 Penetration Max . | . . . . Secondary Targets 3 | . 3 . . Max Gunslinging Chain 1 | . 1 . . Shots Hit Robots 132 | . 94 13 25 Core Hits 44 | . 34 2 8 Critical Kills . | . . . . Critical Parts Destroyed . | . . . . Critical Strikes 6 | . 3 1 2 Burn 4 | . 3 1 . Blast 2 | . . . 2 Melee Attacks . | . . . . Impact . | . . . . Slashing . | . . . . Piercing . | . . . . Sneak Attacks . | . . . . Combat Hostiles . | . . . . Follow-up Attacks . | . . . . Damage Inflicted 1937 | . 1175 155 607 Guns 1330 | . 1175 155 . Cannons 607 | . . . 607 Explosions . | . . . . Melee . | . . . . Ramming . | . . . . Kinetic 1400 | . 724 69 607 Thermal 537 | . 451 86 . Explosive . | . . . . Electromagnetic . | . . . . Impact . | . . . . Slashing . | . . . . Piercing . | . . . . Highest Corruption . | . . . . Average Corruption . | . . . . Corruption Purged . | . . . . Corruption Blocked . | . . . . Overload Shots . | . . . . Overflow Damage 24 | . . . 24 Projectiles 24 | . . . 24 Explosions . | . . . . Melee . | . . . . Knockbacks 4 | . . . 4 Impact . | . . . . Kinetic 4 | . . . 4 Secondary . | . . . . Self-Inflicted Damage . | . . . . Shots . | . . . . Rammed . | . . . . Targets Rammed . | . . . . Kicked . | . . . . Crushed . | . . . . Highest Temperature 360 | . 360 10 120 Average Temperature 69 | . 86 7 28 Received Heat Transfer 393 | . 192 132 69 Effects 5 | . 5 . . Energy Bleed 1 | . 1 . . Interference 4 | . 4 . . Siege Activations . | . . . . Robots Corrupted . | . . . . Combat Hostiles . | . . . . Parts Fried . | . . . . Impact Corruptions . | . . . . Robots Melted . | . . . . Combat Hostiles . | . . . . Parts Melted 2 | . 2 . . Heat Transferred 1665 | . 1332 333 . Parts Sabotaged . | . . . . Parts Stolen . | . . . . Parts Stripped . | . . . . Power Chain Reactions . | . . . . Alert | -11 -10 -10 -7 ------- Run | Yrd Mat Sub Rec Peak Influence 188 | . 153 . 188 Initial 118 | . . . 118 Average 67 | . 57 . 134 Maximum Alert Level . | . . . . Low Security (%) 100 | 100 100 . 100 Level 1 . | . . . . Level 2 . | . . . . Level 3 . | . . . . Level 4 . | . . . . Level 5 . | . . . . High Security . | . . . . Max Security . | . . . . Squads Dispatched 2 | . 2 . . Investigation 1 | . 1 . . Extermination . | . . . . Reinforcement 1 | . 1 . . Assault . | . . . . Garrison . | . . . . Intercept . | . . . . Searches Triggered . | . . . . Construction Impeded . | . . . . Haulers Reinforced . | . . . . Active Scanning Responses . | . . . . Cargo Convoy Interrupts . | . . . . Stealth | -11 -10 -10 -7 --------- Run | Yrd Mat Sub Rec Distress Signals 2 | . 2 . . Communications Jammed . | . . . . Distress Signals . | . . . . Times Spotted 55 | . 22 26 7 Peak Tracking Total 6 | . 4 6 5 Tactical Retreats 2 | . . 2 . Traps | -11 -10 -10 -7 ------- Run | Yrd Mat Sub Rec Traps Triggered 4 | . 2 2 . Indirectly . | . . . . Trap Hack Attempts . | . . . . Triggered . | . . . . Disarmed . | . . . . Reprogrammed . | . . . . Reused . | . . . . Traps Extracted . | . . . . Installed . | . . . . Triggered . | . . . . Machines | -11 -10 -10 -7 ---------- Run | Yrd Mat Sub Rec Machines Disabled 4 | . . 3 1 Max in Single Turn 1 | . . 1 1 Machines Repaired . | . . . . Machines Dismantled . | . . . . Machines Sabotaged . | . . . . Overloaded Fab Kills . | . . . . Hacking | -11 -10 -10 -7 --------- Run | Yrd Mat Sub Rec Machines Accessed 12 | . 9 2 1 Terminals 7 | . 7 . . Fabricators . | . . . . Repair Stations 1 | . 1 . . Recycling Units 2 | . 1 . 1 Scanalyzers . | . . . . Garrison Access . | . . . . Total Hacks 24 | . 19 3 2 Successful 13 | . 10 3 . Failed 11 | . 9 . 2 Catastrophic 5 | . 4 . 1 Database Lockouts . | . . . . Manual 6 | . 4 2 . Terminals 14 | . 14 . . Fabricators . | . . . . Repair Stations 4 | . 4 . . Recycling Units 3 | . 1 . 2 Scanalyzers . | . . . . Garrison Access . | . . . . Terminal Hacks 9 | . 6 3 . Record 2 | . . 2 . Prototype ID Bank 2 | . 2 . . Emergency Access Points 1 | . 1 . . Terminal Index 1 | . 1 . . Registered Components 1 | . 1 . . Zone Layout 1 | . 1 . . Derelict Proto ID Bank 1 | . . 1 . Fabricator Hacks . | . . . . Repair Station Hacks 3 | . 3 . . Scan Component 2 | . 2 . . Repair 1 | . 1 . . Recycling Unit Hacks 1 | . 1 . . Retrieve Components 1 | . 1 . . Scanalyzer . | . . . . Garrison Access Hacks . | . . . . Unauthorized Hacks . | . . . . Terminals . | . . . . Fabricators . | . . . . Repair Stations . | . . . . Recycling Units . | . . . . Scanalyzers . | . . . . Garrison Access . | . . . . Data Cores Recovered . | . . . . Used . | . . . . Hacking Detections 8 | . 7 . 1 Full Trace Events 1 | . . . 1 Feedback Events . | . . . . Feedback Blocked . | . . . . Robot Schematics Acquired . | . . . . Robots Built . | . . . . Authchips . | . . . . Time . | . . . . Total Robot Build Rating . | . . . . Part Schematics Acquired . | . . . . Parts Built . | . . . . Authchips . | . . . . Time . | . . . . Total Part Build Rating . | . . . . Parts Repaired 1 | . 1 . . Time 26 | . 26 . . Parts Recycled . | . . . . Recycled Matter . | . . . . Retrieved Matter . | . . . . Retrieved Components 10 | . 10 . . Parts Scanalyzed . | . . . . Part Schematics Acquired . | . . . . Parts Damaged . | . . . . Bothacking | -11 -10 -10 -7 ------------ Run | Yrd Mat Sub Rec Used RIF Installer . | . . . . Robots Hacked . | . . . . Non-combat . | . . . . Combat . | . . . . Robot Hacks Applied . | . . . . Relay Couplers Released . | . . . . Fabnet Peak Effective % . | . . . . Robots Rewired . | . . . . Allies Hacked . | . . . . Hacks Repelled . | . . . . Allies | -11 -10 -10 -7 -------- Run | Yrd Mat Sub Rec Total Allies 11 | . . 11 . Largest Group 8 | . . 8 8 Highest-Rated Group 153 | . . 153 153 Highest-Rated Ally 20 | . . 20 20 Total Orders . | . . . . Ally Attacks 70 | . . 47 23 Total Damage 2457 | . . 1160 1297 Kills 15 | . . 12 3 Allies Corrupted . | . . . . Allies Melted . | . . . . Intel | -11 -10 -10 -7 ------- Run | Yrd Mat Sub Rec Robot Analysis Total . | . . . . Derelict Logs Recovered 2 | . . 2 . Drone Launches . | . . . . Drone Recoveries . | . . . . Exploration | -11 -10 -10 -7 ------------- Run | Yrd Mat Sub Rec Turns Passed 7888 | 78 2010 5414 386 Spaces Moved 3545 | 43 739 2553 210 Core 3 | 3 . . . Treads 1650 | 40 739 871 . Legs 1892 | . . 1682 210 Wheels . | . . . . Hover . | . . . . Flight . | . . . . Fastest Speed 50 | 50 160 130 130 Average Speed 177 | 152 226 167 130 Slowest Speed 320 | 160 320 250 130 Overloaded Moves . | . . . . Propulsion Burnouts . | . . . . Robots Hopped . | . . . . Cave-ins Triggered . | . . . . Exploration Rate (%) 56 | 5 99 96 27 Regions Visited 3 Branch Regions 2 Pre-discovered Areas 2 | . . 2 . Known Exits Taken . | . . . . Unknown Exits Taken 3 | 1 1 1 . Scrap Searched 16 | . . 16 . Spaces Dug 1 | . . 1 . Terrain Destroyed 4 | . . 1 3 Melee . | . . . . Projectile 4 | . . 1 3 AOE . | . . . . Terrain Rammed . | . . . . Walls Destroyed . | . . . . Machines Disabled . | . . . . Actions | -11 -10 -10 -7 --------- Run | Yrd Mat Sub Rec Total 4868 | 53 930 3598 287 Wait 1091 | . 80 967 44 Move 3542 | 42 738 2552 210 Hop . | . . . . Pick Up 30 | 3 10 12 5 Fast Attach 14 | 7 4 2 1 Attach 9 | . 2 6 1 Detach 7 | 1 3 2 1 Swap 10 | . 6 4 . Drop 18 | . 5 8 5 Fire 147 | . 82 45 20 Melee . | . . . . Ram . | . . . . Kick . | . . . . Crush . | . . . . Escape Stasis . | . . . . Rewire . | . . . . Trap . | . . . . Miscellaneous . | . . . . Route ------- -11/Scrapyard -10/Materials (discovered 6 exits: [*Mat x3] / [*Min x2] / *Sub) -10/Subcaves (discovered 3 exits: [*Mat x2] / *Rec) -7/Recycling History --------- Turn | Location | Event 15 | -11/Scrapyard | Discovered new exit (range 16) 79 | -11/Scrapyard | Entered Materials 150 | -10/Materials | Discovered new exit (range 8) 286 | -10/Materials | Discovered new exit (range 14) 318 | -10/Materials | Build established: Mutant 852 | -10/Materials | Discovered new exit (range 6) 1345 | -10/Materials | Discovered new exit (range 5) 1398 | -10/Materials | Core integrity fell below 50% 1468 | -10/Materials | Repaired Lgt. Treads 1624 | -10/Materials | Discovered new exit (range 16) 2081 | -10/Materials | Discovered new exit (range 4) 2089 | -10/Materials | Entered Subcaves 2822 | -10/Subcaves | Discovered new exit (range 8) 2935 | -10/Subcaves | A swath of the cavern ceiling suddenly collapsed 3292 | -10/Subcaves | Lost 3 parts (1n1u1w) 3357 | -10/Subcaves | Shifting Twisted Machinery released Battle Cannon 3437 | -10/Subcaves | Shifting Twisted Machinery released Sub. Beam Cannon 3492 | -10/Subcaves | Visited triangular shrine 3506 | -10/Subcaves | Found Prototype Device 3507 | -10/Subcaves | Identified V3-11A's Pendant 3512 | -10/Subcaves | Befriended Subdweller 3632 | -10/Subcaves | Befriended Subdweller 3738 | -10/Subcaves | Discovered new exit (range 9) 4086 | -10/Subcaves | Learned location of 1 exit from Materials 4182 | -10/Subcaves | A swath of the cavern ceiling suddenly collapsed 4281 | -10/Subcaves | Visited 4L-MR0's lab 4320 | -10/Subcaves | Found Cargo Legs 4321 | -10/Subcaves | Attached Cargo Legs, gained temporary slots: Utility x2 4462 | -10/Subcaves | Befriended Subdweller 4462 | -10/Subcaves | Befriended Subdweller 4522 | -10/Subcaves | Befriended Subdweller 5158 | -10/Subcaves | Discovered new exit (range 13) 5171 | -10/Subcaves | Core integrity fell below 20% 5172 | -10/Subcaves | Befriended Subdweller 5442 | -10/Subcaves | Befriended Subdweller 5449 | -10/Subcaves | A Subdweller sparked back to life 5449 | -10/Subcaves | A Subdweller sparked back to life 5452 | -10/Subcaves | Befriended Subdweller 5452 | -10/Subcaves | Befriended Subdweller 5462 | -10/Subcaves | Befriended Subdweller 6125 | -10/Subcaves | Disturbed a concealed Subdweller 6127 | -10/Subcaves | Befriended Subdweller 6346 | -10/Subcaves | Visited Clippyterm 6389 | -10/Subcaves | Learned location of Zion (-7) 6389 | -10/Subcaves | Met a Zionite searching for "candidates" 7503 | -10/Subcaves | Entered Recycling 7503 | -7/Recycling | Accompanied by 8 allies 7509 | -7/Recycling | Found Scrap Engine 7822 | -7/Recycling | Lost 6 allies 7889 | -7/Recycling | Destroyed by Y-54 Guardian with Flak Gun Last Messages --------------- 07859_ Acquired Hvy. Mace. 07864_ G-47 Trooper springs to life. 07865_ I-36 Angel springs to life. 07865_ G-47 Trooper springs to life. 07865_ P-60 Hacker springs to life. 07866_ G-47 Trooper destroyed. 07866_ H-55 Commando destroyed. 07866_ I-36 Angel destroyed. 07866_ 61-G5C(R) destroyed. 07869_ Arm. Scrap Engine reinforces its armored shell (+18). 07875_ Destroyed Shock Rifle. 07878_ P-60 Hacker knocked back. 07878_ P-60 Hacker destroyed. 07881_ G-47 Trooper destroyed. 07882_ Acquired 1 matter. 07884_ G-47 Trooper destroyed. 07887_ Y-54 Guardian Imp. Light Armor Plating blasted off. 07888_ R-06 Scavenger collects Aluminum Leg. Map ----- +----------------------------------------------------+ | ?????????????????????????????????????????????????? | | ?????????????????????????????????????????????????? | | ?????????????????????????????????????????????????? | | ?????????????????????????????????????????????????? | | ?????????????????????????????????????????????????? | | ?????????????????????????????????????????????????? | | ?????????????????????????????????????????????????? | | ?????????????????????????????????????????????????? | | ?????????????????????????????????????????????????? | | ?????????????????????????????????????????????????? | | ?????????????????????????????????????????????????? | | ?????????????????????????????????????????????????? | | ???##????????????????????????????????????????????? | | ??? ????????????????????????????????????????????? | | ?"" "????????????????????????????????????????????? | | """ "???????#?????##########?????????????????????? | | """ "??????????#??# ? ??????????????????????? | | ?? ??????????# ??????????????????????? | | ? ??????????????# ??????????????????????? | | ? ??????????????# ??? ??????????????????? | | ? ??????????#?## ????????? ?????????????? | | ##/#####?#????###??? ??????#????????????????? | | # ? ???? #???? ???? ??????????????????? | | # ##/######## ###??? ???????????????????????? | | # # # ########;##### #?????????????????? | | # # + %r@%%% #?????????????????? | | + + """ """ # ########Y##+########?????????????? | | # # """ """ # #?#####%r# % #?????????????? | | # # """ """ # ######## " #?????????????? | | # # """ """ # # ! # " #?????????????? | | # # """ """ # # ! /#&![ % ! #?????????????? | | # # + # "%! ##????????????? | | ########### # #&= % = #?????????????? | | ########&## # # " % ! #?????????????? | | %% &%% + # "%=%*% #?????????????? | | ############ && # # """"""""###?????????????? | | #???#?#%% # # #########???????????????? | | """ ##??### #%% # #???????????????????????? | | "Y"%#??#### # ! # ##??????????????????????? | | " " ####### # # ### #?????????????????? | | / # + #?????????????????? | | % %%############ ##### #?????????????????? | | % #???###???#########?????????????????????????? | | #######?#???#??????????????##????????????????????? | | ?????##?#?##??#????#?????????????????????????????? | | ??????#???#??????????????????????????????????????? | | | | | | | | | +----------------------------------------------------+ Best States ------------- Heat Dissipation 25 Energy Generation 10 Energy Capacity 250 Matter Stores 300 Matter Capacity 400 Sight Range 16 Robot Scan Range 14 Terrain Scan Range 14 Terrain Scan Density 10 Core Shielding 20 Evasion (%) 55 Recoil Reduction 2 Item Schematics ----------------- None Robot Schematics ------------------ None Fabricated ------------ Nothing Alien Tech Used ----------------- None Achievements -------------- None Challenges ------------ None Game ------ Seed ImpactTacticalSlayer Manual? 0 Play Time 00:39:34 Cumulative 76.9 hours Start 2024.05.18 @ 12:13:30 End 2024.05.18 @ 12:53:40 Sessions 1 Manual Loads 0 Difficulty Rogue Special Mode None Game No. 118 Rogue 118 Adventurer 0 Explorer 0 Win Type - Total 1 Types 1/0/0/0/0/0/0/0/0 Lore% 38 Gallery% 42 Achievement% 32 Wizard Run 0 Options --------- Layout 1 ASCII 0 Keyboard 1 Movement Numpad Keybinds 0 Fullscreen 1 Font 24/Smallcaps Map View 50x35 Zoom Use 0% Tactical HUD 1 Map Filters NONE Filters NONE Steam 1 RUN: a007ffe0-12ff-44d9-8a70-c2b8270613d4